fUSD/lending_fUSD_20250109
["ID","MTS","AMOUNT","RATE_DAILY","PERIOD"]
[348314700,1736442653494,-53.66717833,0.00010343,2]
[348314701,1736442653504,-256.57292872,0.00010343,2]
[348314702,1736442653559,-425.89707128,0.00010343,2]
[348314703,1736442653569,-499.70473297,0.00010343,2]
[348314704,1736442653582,-0.29526703,0.00010343,2]
[348314705,1736442653592,-1239.29,0.00010343,2]
[348314706,1736442653602,-898.24,0.00010343,2]
[348314707,1736442653614,-500.0,0.00010343,2]
[348314708,1736442653623,-500.0,0.00010343,2]
[348314709,1736442653632,-500.0,0.00010343,2]
[348314710,1736442653642,-500.0,0.00010343,2]
[348314711,1736442653651,-500.0,0.00010343,2]
[348314712,1736442653660,-500.0,0.00010343,2]
[348314713,1736442653670,-500.0,0.00010343,2]
[348314714,1736442653679,-565.13,0.00010343,2]
[348314715,1736442653688,-500.0,0.00010343,2]
[348314716,1736442653698,-500.0,0.00010343,2]
[348314717,1736442653707,-500.0,0.00010343,2]
[348314718,1736442653716,-500.0,0.00010343,2]
[348314719,1736442653725,-167.56929399,0.00010343,2]
[348314720,1736442653734,-1094.17,0.00010343,2]
[348314721,1736442653744,-524.99,0.00010343,2]
[348314722,1736442653755,-251.3,0.00010343,2]
[348314723,1736442653767,-500.0,0.00010343,2]
[348314724,1736442653777,-500.0,0.00010343,2]
[348314725,1736442653787,-2692.49,0.00010343,2]
[348314726,1736442653796,-708.43,0.00010343,2]
[348314727,1736442653808,-500.0,0.00010343,2]
[348314728,1736442653817,-500.0,0.00010343,2]
[348314729,1736442653827,-636.89,0.00010343,2]
[348314730,1736442653836,-500.0,0.00010343,2]
[348314731,1736442653846,-500.0,0.00010343,2]
[348314732,1736442653855,-659.52,0.00010343,2]
[348314733,1736442653866,-500.0,0.00010343,2]
[348314734,1736442653877,-500.0,0.00010343,2]
[348314735,1736442653888,-500.0,0.00010343,2]
[348314736,1736442653897,-500.0,0.00010343,2]
[348314737,1736442654097,-500.0,0.00010343,2]
[348314738,1736442654118,-500.0,0.00010343,2]
[348314739,1736442654128,-1132.21,0.00010343,2]
[348314740,1736442654137,-420.47947502,0.00010343,2]
[348314741,1736442654149,-679.23052498,0.00010343,2]
[348314742,1736442654158,-663.31,0.00010343,2]
[348314743,1736442654167,-1126.97,0.00010343,2]
[348314744,1736442654176,-166.22396205,0.00010343,2]
[348314745,1736442654185,-913.06,0.00010343,2]
[348314746,1736442654194,-500.0,0.00010343,2]
[348314747,1736442654204,-500.0,0.00010343,2]
[348314748,1736442654213,-5408.76,0.00010343,2]
[348314749,1736442654222,-500.0,0.00010343,2]
[348314750,1736442654231,-500.0,0.00010343,2]
[348314751,1736442654241,-500.0,0.00010343,2]
[348314752,1736442654250,-553.69,0.00010343,2]
[348314753,1736442654259,-500.0,0.00010343,2]
[348314754,1736442654268,-642.17,0.00010343,2]
[348314755,1736442654278,-500.0,0.00010343,2]
[348314756,1736442654287,-500.0,0.00010343,2]
[348314757,1736442654297,-500.0,0.00010343,2]
[348314758,1736442654306,-500.0,0.00010343,2]
[348314759,1736442654315,-4103.47,0.00010343,2]
[348314760,1736442654324,-500.0,0.00010343,2]
[348314761,1736442654334,-500.0,0.00010343,2]
[348314762,1736442654343,-500.0,0.00010343,2]
[348314763,1736442654354,-617.54,0.00010343,2]
[348314764,1736442654365,-500.0,0.00010343,2]
[348314765,1736442654375,-500.0,0.00010343,2]
[348314766,1736442654384,-1129.88,0.00010343,2]
[348314767,1736442654393,-907.52,0.00010343,2]
[348314768,1736442654402,-500.0,0.00010343,2]
[348314769,1736442654412,-582.66,0.00010343,2]
[348314770,1736442654422,-500.0,0.00010343,2]
[348314771,1736442654433,-576.43,0.00010343,2]
[348314772,1736442654443,-500.0,0.00010343,2]
[348314773,1736442654455,-3907.36,0.00010343,2]
[348314774,1736442654465,-500.0,0.00010343,2]
[348314775,1736442654475,-500.0,0.00010343,2]
[348314776,1736442654484,-500.0,0.00010343,2]
[348314777,1736442654494,-500.0,0.00010343,2]
[348314778,1736442654503,-500.0,0.00010343,2]
[348314779,1736442654513,-500.0,0.00010343,2]
[348314780,1736442654522,-817.32,0.00010343,2]
[348314781,1736442654531,-692.42,0.00010343,2]
[348314782,1736442654541,-500.0,0.00010343,2]
[348314783,1736442654550,-500.0,0.00010343,2]
[348314784,1736442654559,-500.0,0.00010343,2]
[348314785,1736442654569,-534.05,0.00010343,2]
[348314786,1736442654578,-500.0,0.00010343,2]
[348314787,1736442654589,-1182.03,0.00010343,2]
[348314788,1736442654599,-500.0,0.00010343,2]
[348314789,1736442654608,-1205.69,0.00010343,2]
[348314790,1736442654620,-500.0,0.00010343,2]
[348314791,1736442654630,-992.0,0.00010343,2]
[348314792,1736442654639,-500.0,0.00010343,2]
[348314793,1736442654648,-500.0,0.00010343,2]
[348314794,1736442654658,-1017.69,0.00010343,2]
[348314795,1736442654667,-1281.81,0.00010343,2]
[348314796,1736442654676,-633.87,0.00010343,2]
[348314797,1736442654685,-500.0,0.00010343,2]
[348314798,1736442654695,-500.0,0.00010343,2]
[348314799,1736442654704,-545.87,0.00010343,2]
[348314800,1736442654713,-500.0,0.00010343,2]
[348314801,1736442654723,-500.0,0.00010343,2]
[348314802,1736442654732,-500.0,0.00010343,2]
[348314803,1736442654742,-500.0,0.00010343,2]
[348314804,1736442654751,-500.0,0.00010343,2]
[348314805,1736442654760,-1272.64,0.00010343,2]
[348314806,1736442654770,-500.0,0.00010343,2]
[348314807,1736442654779,-500.0,0.00010343,2]
[348314808,1736442654788,-500.0,0.00010343,2]
[348314809,1736442654799,-500.0,0.00010343,2]
[348314810,1736442654809,-500.0,0.00010343,2]
[348314811,1736442654818,-500.0,0.00010343,2]
[348314812,1736442654827,-840.54,0.00010343,2]
[348314813,1736442654836,-500.0,0.00010343,2]
[348314814,1736442654846,-500.0,0.00010343,2]
[348314815,1736442654855,-500.0,0.00010343,2]
[348314816,1736442654867,-500.0,0.00010343,2]
[348314817,1736442654877,-691.9,0.00010343,2]
[348314818,1736442654888,-500.0,0.00010343,2]
[348314819,1736442654897,-1260.17,0.00010343,2]
[348314820,1736442654907,-571.29,0.00010343,2]
[348314821,1736442654916,-500.0,0.00010343,2]
[348314822,1736442654925,-6532.98,0.00010344,2]
[348314823,1736442654935,-3938.41,0.00010344,2]
[348314824,1736442654944,-3774.31,0.00010344,2]
[348314825,1736442654953,-350.422237,0.00010344,2]
[348314826,1736442654963,-350.422237,0.00010344,2]
[348314827,1736442654973,-2397.73,0.00010344,2]
[348314828,1736442654983,-4753.83,0.00010344,2]
[348314829,1736442654992,-500.0,0.00010344,2]
[348314830,1736442655002,-1491.76,0.00010344,2]
[348314831,1736442655011,-1212.28,0.00010344,2]
[348314832,1736442655021,-1744.44,0.00010344,2]
[348314833,1736442655030,-2117.59,0.00010344,2]
[348314834,1736442655039,-1921.3,0.00010344,2]
[348314835,1736442655048,-1822.71,0.00010344,2]
[348314836,1736442655058,-4200.78,0.00010344,2]
[348314837,1736442655067,-2007.74,0.00010344,2]
[348314838,1736442655077,-2463.3,0.00010344,2]
[348314839,1736442655087,-1734.7,0.00010344,2]
[348314840,1736442655095,-2365.26,0.00010344,2]
[348314841,1736442655105,-2036.39,0.00010344,2]
[348314842,1736442655115,-500.0,0.00010344,2]
[348314843,1736442655125,-676.5,0.00010344,2]
[348314844,1736442655134,-845.58,0.00010344,2]
[348314845,1736442655143,-637.67,0.00010344,2]
[348314846,1736442655153,-674.22,0.00010344,2]
[348314847,1736442655162,-513.98,0.00010344,2]
[348314848,1736442655171,-680.52,0.00010344,2]
[348314849,1736442655180,-1258.75,0.00010344,2]
[348314850,1736442655189,-500.0,0.00010344,2]
[348314851,1736442655199,-1727.52,0.00010345,2]
[348314852,1736442655208,-1162.50772391,0.00010345,2]
[348314853,1736442655221,-624.81896859,0.00010345,2]
[348314854,1736442655233,-524.2933075,0.00010345,2]
[348314855,1736442655242,-1366.5956925,0.00010345,2]
[348314856,1736442655258,-397.2043075,0.00010345,2]
[348314857,1736442655267,-905.52,0.00010345,2]
[348314858,1736442655277,-1367.1283425,0.00010345,2]
[348314859,1736442655299,-785.9816575,0.00010345,2]
[348314860,1736442655308,-1161.4583425,0.00010345,2]
[348314861,1736442655475,-500.0,9.794e-05,2]
[348314862,1736442655485,-500.0,9.795e-05,2]
[348314863,1736442655495,-500.0,0.00010068,2]
[348314864,1736442655504,-500.0,0.00010069,2]
[348314865,1736442655513,-323.04,0.00010342,2]
[348314866,1736442655523,-129.4616575,0.00010345,2]
[348314867,1736442655532,-4165.03,0.00010345,2]
[348314868,1736442655542,-509.91,0.00010345,2]
[348314869,1736442655551,-1895.68,0.00010345,2]
[348314870,1736442655560,-1576.54,0.00010345,2]
[348314871,1736442655570,-1221.93,0.00010345,2]
[348314872,1736442655579,-628.86,0.00010345,2]
[348314873,1736442655589,-2038.13,0.00010345,2]
[348314874,1736442655599,-2626.05,0.00010345,2]
[348314875,1736442655608,-893.98,0.00010345,2]
[348314876,1736442655619,-2934.3,0.00010345,2]
[348314877,1736442655629,-5502.715,0.0001036,2]
[348314878,1736442655638,-152.027,0.0001036,2]
[348314879,1736442655647,-559.1021256,0.00010362,2]
[348314880,1736442655657,-150.0,0.00010413,2]
[348314881,1736442655666,-662.46,0.00010415,2]
[348314882,1736442655675,-559.1021256,0.00010472,2]
[348314883,1736442655684,-150.0,0.00010498,2]
[348314884,1736442655694,-1000.0,0.000105,2]
[348314885,1736442655703,-559.1021256,0.00010583,2]
[348314886,1736442655713,-150.0,0.00010584,2]
[348314887,1736442655722,-1000.0,0.00010608,2]
[348314888,1736442655732,-1549.84,0.00010616,2]
[348314889,1736442655741,-1257.62,0.00010616,2]
[348314890,1736442655751,-2007.25,0.00010616,2]
[348314891,1736442655760,-4207.68,0.00010616,2]
[348314892,1736442655770,-1868.09,0.00010616,2]
[348314893,1736442655779,-1430.82,0.00010616,2]
[348314894,1736442655788,-812.036589,0.00010616,2]
[348314895,1736442655798,-754.420427,0.00010616,2]
[348314896,1736442655811,-3970.32,0.00010616,2]
[348314897,1736442655820,-2083.5,0.00010616,2]
[348314898,1736442655829,-1021.82,0.00010616,2]
[348314899,1736442655839,-500.0,0.00010616,2]
[348314900,1736442655849,-5379.17,0.00010616,2]
[348314901,1736442655858,-594.17,0.00010616,2]
[348314902,1736442655872,-1409.26,0.00010616,2]
[348314903,1736442655882,-634.61,0.00010616,2]
[348314904,1736442655891,-817.59,0.00010616,2]
[348314905,1736442655900,-631.38,0.00010616,2]
[348314906,1736442655910,-4782.65,0.00010616,2]
[348314907,1736442655920,-2135.39,0.00010616,2]
[348314908,1736442655930,-3557.26,0.00010616,2]
[348314909,1736442655939,-10090.41,0.00010616,2]
[348314910,1736442655949,-1407.15,0.00010616,2]
[348314911,1736442655958,-2435.43,0.00010616,2]
[348314912,1736442655968,-1449.01,0.00010616,2]
[348314913,1736442655978,-549.53,0.00010616,2]
[348314914,1736442655987,-1855.69,0.00010616,2]
[348314915,1736442655997,-5304.55,0.00010616,2]
[348314916,1736442656007,-2939.28,0.00010616,2]
[348314917,1736442656016,-1680.01,0.00010616,2]
[348314918,1736442656026,-715.97,0.00010616,2]
[348314919,1736442656035,-6514.28,0.00010616,2]
[348314920,1736442656045,-3504.21,0.00010616,2]
[348314921,1736442656056,-5974.32,0.00010616,2]
[348314922,1736442656065,-928.67,0.00010616,2]
[348314923,1736442656075,-1855.97,0.00010616,2]
[348314924,1736442656085,-1927.53,0.00010616,2]
[348314925,1736442656094,-2360.9,0.00010616,2]
[348314926,1736442656102,-5398.17,0.00010616,2]
[348314927,1736442656112,-500.0,0.00010616,2]
[348314928,1736442656125,-2517.96,0.00010616,2]
[348314929,1736442656134,-615.78,0.00010616,2]
[348314930,1736442656143,-1266.39,0.00010616,2]
[348314931,1736442656151,-1328.6,0.00010616,2]
[348314932,1736442656159,-1317.99,0.00010616,2]
[348314933,1736442656169,-500.0,0.00010616,2]
[348314934,1736442656179,-1495.08,0.00010616,2]
[348314935,1736442656189,-500.0,0.00010616,2]
[348314936,1736442656198,-2245.34,0.00010616,2]
[348314937,1736442656207,-632.58,0.00010616,2]
[348314938,1736442656217,-534.44,0.00010616,2]
[348314939,1736442656226,-3884.13,0.00010616,2]
[348314940,1736442656236,-951.32,0.00010616,2]
[348314941,1736442656245,-500.0,0.00010616,2]
[348314942,1736442656254,-3207.48,0.00010616,2]
[348314943,1736442656263,-596.89,0.00010617,2]
[348314944,1736442656273,-500.0,0.00010617,2]
[348314945,1736442656282,-500.0,0.00010617,2]
[348314946,1736442656291,-500.0,0.00010617,2]
[348314947,1736442656300,-500.0,0.00010617,2]
[348314948,1736442656310,-500.0,0.00010617,2]
[348314949,1736442656319,-500.0,0.00010617,2]
[348314950,1736442656329,-500.0,0.00010617,2]
[348314951,1736442656339,-479.7092412,0.00010617,2]
[348314952,1736442656349,-500.0,0.00010617,2]
[348314953,1736442656359,-500.0,0.00010617,2]
[348314954,1736442656369,-500.0,0.00010617,2]
[348314955,1736442656379,-500.0,0.00010617,2]
[348314956,1736442656387,-500.0,0.00010617,2]
[348314957,1736442656397,-500.0,0.00010617,2]
[348314958,1736442656406,-500.0,0.00010617,2]
[348314959,1736442656416,-500.0,0.00010617,2]
[348314960,1736442656429,-500.0,0.00010617,2]
[348314961,1736442656439,-500.0,0.00010617,2]
[348314962,1736442656448,-500.0,0.00010617,2]
[348314963,1736442656458,-500.0,0.00010617,2]
[348314964,1736442656468,-500.0,0.00010617,2]
[348314965,1736442656479,-500.0,0.00010617,2]
[348314966,1736442656489,-500.0,0.00010617,2]
[348314967,1736442656499,-500.0,0.00010617,2]
[348314968,1736442656508,-500.0,0.00010617,2]
[348314969,1736442656518,-500.0,0.00010617,2]
[348314970,1736442656528,-500.0,0.00010617,2]
[348314971,1736442656537,-500.0,0.00010617,2]
[348314972,1736442656547,-500.0,0.00010617,2]
[348314973,1736442656559,-703.64,0.00010617,2]
[348314974,1736442656569,-549.7,0.00010617,2]
[348314975,1736442656579,-500.0,0.00010617,2]
[348314976,1736442656589,-304.93933523,0.00010617,2]
[348314977,1736442656599,-1152.05,0.00010617,2]
[348314978,1736442656609,-595.51,0.00010617,2]
[348314979,1736442656620,-500.0,0.00010617,2]
[348314980,1736442656629,-500.0,0.00010617,2]
[348314981,1736442656639,-500.0,0.00010617,2]
[348314982,1736442656648,-730.02,0.00010617,2]
[348314983,1736442656658,-500.0,0.00010617,2]
[348314984,1736442656667,-500.0,0.00010617,2]
[348314985,1736442656677,-679.78,0.00010617,2]
[348314986,1736442656686,-506.06,0.00010617,2]
[348314987,1736442656696,-500.21,0.00010617,2]
[348314988,1736442656705,-636.82,0.00010617,2]
[348314989,1736442656715,-591.95,0.00010617,2]
[348314990,1736442656724,-500.0,0.00010617,2]
[348314991,1736442656733,-500.0,0.00010617,2]
[348314992,1736442656742,-500.0,0.00010617,2]
[348314993,1736442656751,-500.0,0.00010617,2]
[348314994,1736442656761,-682.24,0.00010617,2]
[348314995,1736442656770,-586.81,0.00010617,2]
[348314996,1736442656780,-500.0,0.00010617,2]
[348314997,1736442656789,-500.0,0.00010617,2]
[348314998,1736442656800,-500.0,0.00010617,2]
[348314999,1736442656811,-500.0,0.00010617,2]
[348315000,1736442656821,-500.0,0.00010617,2]
[348315001,1736442656831,-500.0,0.00010617,2]
[348315002,1736442656841,-500.0,0.00010617,2]
[348315003,1736442656850,-500.0,0.00010617,2]
[348315004,1736442656859,-500.0,0.00010617,2]
[348315005,1736442656871,-500.0,0.00010617,2]
[348315006,1736442656882,-500.0,0.00010617,2]
[348315007,1736442656892,-500.0,0.00010617,2]
[348315008,1736442656902,-500.0,0.00010617,2]
[348315009,1736442656911,-500.0,0.00010617,2]
[348315010,1736442656920,-500.0,0.00010617,2]
[348315011,1736442656930,-500.0,0.00010617,2]
[348315012,1736442656939,-500.0,0.00010617,2]
[348315013,1736442656948,-500.0,0.00010617,2]
[348315014,1736442656957,-934.92,0.00010617,2]
[348315015,1736442656967,-500.0,0.00010617,2]
[348315016,1736442656976,-811.49,0.00010617,2]
[348315017,1736442656985,-500.0,0.00010617,2]
[348315018,1736442656995,-500.0,0.00010617,2]
[348315019,1736442657004,-500.0,0.00010617,2]
[348315020,1736442657013,-500.0,0.00010617,2]
[348315021,1736442657023,-667.86,0.00010617,2]
[348315022,1736442657032,-500.0,0.00010617,2]
[348315023,1736442657042,-500.0,0.00010617,2]
[348315024,1736442657051,-500.0,0.00010617,2]
[348315025,1736442657061,-500.0,0.00010617,2]
[348315026,1736442657070,-517.02,0.00010617,2]
[348315027,1736442657079,-500.0,0.00010617,2]
[348315028,1736442657089,-500.0,0.00010617,2]
[348315029,1736442657098,-1282.01,0.00010617,2]
[348315030,1736442657108,-500.0,0.00010617,2]
[348315031,1736442657119,-500.0,0.00010617,2]
[348315032,1736442657129,-504.51,0.00010617,2]
[348315033,1736442657139,-500.0,0.00010617,2]
[348315034,1736442657148,-772.82,0.00010617,2]
[348315035,1736442657157,-500.0,0.00010617,2]
[348315036,1736442657167,-500.0,0.00010617,2]
[348315037,1736442657176,-635.44,0.00010617,2]
[348315038,1736442657185,-500.0,0.00010617,2]
[348315039,1736442657194,-500.0,0.00010617,2]
[348315040,1736442657203,-890.92,0.00010617,2]
[348315041,1736442657212,-500.0,0.00010617,2]
[348315042,1736442657391,-500.0,0.00010617,2]
[348315043,1736442657401,-500.0,0.00010617,2]
[348315044,1736442657410,-500.0,0.00010617,2]
[348315045,1736442657419,-571.11,0.00010617,2]
[348315046,1736442657428,-625.17,0.00010617,2]
[348315047,1736442657437,-500.0,0.00010617,2]
[348315048,1736442657446,-500.0,0.00010617,2]
[348315049,1736442657455,-500.0,0.00010617,2]
[348315050,1736442657464,-500.0,0.00010617,2]
[348315051,1736442657473,-500.0,0.00010617,2]
[348315052,1736442657483,-508.0,0.00010617,2]
[348315053,1736442657492,-554.42,0.00010617,2]
[348315054,1736442657501,-500.0,0.00010617,2]
[348315055,1736442657510,-500.0,0.00010617,2]
[348315056,1736442657519,-500.0,0.00010617,2]
[348315057,1736442657528,-500.0,0.00010617,2]
[348315058,1736442657538,-500.0,0.00010617,2]
[348315059,1736442657547,-500.0,0.00010617,2]
[348315060,1736442657557,-500.0,0.00010617,2]
[348315061,1736442657566,-1214.35,0.00010617,2]
[348315062,1736442657575,-345.1217678,0.00010617,2]
[348315063,1736442657585,-500.0,0.00010617,2]
[348315064,1736442657594,-1724.89,0.00010617,2]
[348315065,1736442657603,-548.05,0.00010617,2]
[348315066,1736442657612,-500.68,0.00010617,2]
[348315067,1736442657623,-500.0,0.00010617,2]
[348315068,1736442657632,-375.98840505,0.00010617,2]
[348315069,1736442657642,-500.0,0.00010617,2]
[348315070,1736442657651,-500.0,0.00010617,2]
[348315071,1736442657660,-1101.0,0.00010617,2]
[348315072,1736442657669,-500.0,0.00010617,2]
[348315073,1736442657678,-500.0,0.00010617,2]
[348315074,1736442657687,-530.19,0.00010617,2]
[348315075,1736442657697,-500.0,0.00010617,2]
[348315076,1736442657706,-500.0,0.00010617,2]
[348315077,1736442657715,-567.59,0.00010617,2]
[348315078,1736442657725,-500.0,0.00010617,2]
[348315079,1736442657734,-500.0,0.00010617,2]
[348315080,1736442657744,-500.0,0.00010617,2]
[348315081,1736442657753,-957.35,0.00010617,2]
[348315082,1736442657763,-704.52,0.00010617,2]
[348315083,1736442657772,-500.0,0.00010617,2]
[348315084,1736442657781,-500.0,0.00010617,2]
[348315085,1736442657790,-500.0,0.00010617,2]
[348315086,1736442657804,-500.0,0.00010617,2]
[348315087,1736442657813,-500.0,0.00010617,2]
[348315088,1736442657823,-500.0,0.00010617,2]
[348315089,1736442657834,-700.47,0.00010617,2]
[348315090,1736442657846,-849.96,0.00010617,2]
[348315091,1736442657857,-500.0,0.00010617,2]
[348315092,1736442657868,-500.0,0.00010617,2]
[348315093,1736442657878,-500.0,0.00010617,2]
[348315094,1736442657888,-500.0,0.00010617,2]
[348315095,1736442657898,-500.0,0.00010617,2]
[348315096,1736442657907,-500.0,0.00010617,2]
[348315097,1736442657917,-500.0,0.00010617,2]
[348315098,1736442657926,-500.0,0.00010617,2]
[348315099,1736442657935,-500.0,0.00010617,2]
[348315100,1736442657945,-922.52,0.00010617,2]
[348315101,1736442657954,-678.45,0.00010617,2]
[348315102,1736442657963,-500.0,0.00010617,2]
[348315103,1736442657973,-500.0,0.00010617,2]
[348315104,1736442657983,-1230.21,0.00010617,2]
[348315105,1736442657992,-500.0,0.00010617,2]
[348315106,1736442658002,-500.0,0.00010617,2]
[348315107,1736442658011,-500.0,0.00010617,2]
[348315108,1736442658021,-737.5,0.00010617,2]
[348315109,1736442658030,-577.94,0.00010617,2]
[348315110,1736442658040,-576.31,0.00010617,2]
[348315111,1736442658050,-1136.76,0.00010617,2]
[348315112,1736442658059,-500.0,0.00010617,2]
[348315113,1736442658069,-746.81,0.00010617,2]
[348315114,1736442658079,-544.62,0.00010617,2]
[348315115,1736442658088,-500.0,0.00010617,2]
[348315116,1736442658097,-1042.62,0.00010617,2]
[348315117,1736442658107,-500.0,0.00010617,2]
[348315118,1736442658116,-602.09,0.00010617,2]
[348315119,1736442658127,-500.0,0.00010617,2]
[348315120,1736442658136,-500.0,0.00010617,2]
[348315121,1736442658145,-500.0,0.00010617,2]
[348315122,1736442658155,-500.0,0.00010617,2]
[348315123,1736442658164,-500.0,0.00010617,2]
[348315124,1736442658174,-962.61,0.00010617,2]
[348315125,1736442658183,-500.0,0.00010617,2]
[348315126,1736442658192,-498.66779124,0.00010617,2]
[348315127,1736442658201,-628.16,0.00010617,2]
[348315128,1736442658210,-500.0,0.00010617,2]
[348315129,1736442658219,-500.0,0.00010617,2]
[348315130,1736442658228,-620.16,0.00010617,2]
[348315131,1736442658238,-500.0,0.00010617,2]
[348315132,1736442658247,-500.0,0.00010617,2]
[348315133,1736442658256,-500.0,0.00010617,2]
[348315134,1736442658265,-1639.86,0.00010617,2]
[348315135,1736442658274,-577.42,0.00010617,2]
[348315136,1736442658283,-500.0,0.00010617,2]
[348315137,1736442658292,-500.0,0.00010617,2]
[348315138,1736442658302,-500.0,0.00010617,2]
[348315139,1736442658311,-500.0,0.00010617,2]
[348315140,1736442658320,-500.0,0.00010617,2]
[348315141,1736442658329,-500.0,0.00010617,2]
[348315142,1736442658337,-500.0,0.00010617,2]
[348315143,1736442658347,-500.0,0.00010617,2]
[348315144,1736442658356,-500.0,0.00010617,2]
[348315145,1736442658365,-500.0,0.00010617,2]
[348315146,1736442658375,-500.0,0.00010617,2]
[348315147,1736442658384,-523.33,0.00010617,2]
[348315148,1736442658393,-500.0,0.00010617,2]
[348315149,1736442658402,-500.0,0.00010617,2]
[348315150,1736442658411,-500.0,0.00010617,2]
[348315151,1736442658421,-500.0,0.00010617,2]
[348315152,1736442658430,-500.0,0.00010617,2]
[348315153,1736442658440,-500.0,0.00010617,2]
[348315154,1736442658449,-500.0,0.00010617,2]
[348315155,1736442658459,-890.48,0.00010617,2]
[348315156,1736442658469,-500.0,0.00010617,2]
[348315157,1736442658478,-500.0,0.00010617,2]
[348315158,1736442658487,-500.0,0.00010617,2]
[348315159,1736442658496,-500.0,0.00010617,2]
[348315160,1736442658505,-500.0,0.00010617,2]
[348315161,1736442658514,-1447.93,0.00010617,2]
[348315162,1736442658523,-500.0,0.00010617,2]
[348315163,1736442658532,-617.59,0.00010617,2]
[348315164,1736442658541,-500.0,0.00010617,2]
[348315165,1736442658550,-500.0,0.00010617,2]
[348315166,1736442658559,-500.0,0.00010617,2]
[348315167,1736442658568,-500.0,0.00010617,2]
[348315168,1736442658577,-500.0,0.00010617,2]
[348315169,1736442658587,-500.0,0.00010617,2]
[348315170,1736442658596,-500.0,0.00010617,2]
[348315171,1736442658605,-620.95,0.00010617,2]
[348315172,1736442658615,-500.0,0.00010617,2]
[348315173,1736442658624,-611.45,0.00010617,2]
[348315174,1736442658633,-500.0,0.00010617,2]
[348315175,1736442658643,-500.0,0.00010617,2]
[348315176,1736442658652,-1210.35,0.00010617,2]
[348315177,1736442658661,-500.0,0.00010617,2]
[348315178,1736442658670,-500.0,0.00010617,2]
[348315179,1736442658679,-500.0,0.00010617,2]
[348315180,1736442658688,-500.0,0.00010617,2]
[348315181,1736442658697,-771.54,0.00010617,2]
[348315182,1736442658706,-500.0,0.00010617,2]
[348315183,1736442658715,-500.0,0.00010617,2]
[348315184,1736442658726,-196.065666,0.00010617,2]
[348315185,1736442658737,-500.0,0.00010617,2]
[348315186,1736442658746,-500.0,0.00010617,2]
[348315187,1736442658757,-500.0,0.00010617,2]
[348315188,1736442658766,-500.0,0.00010617,2]
[348315189,1736442658776,-586.46,0.00010617,2]
[348315190,1736442658787,-500.0,0.00010617,2]
[348315191,1736442658797,-1439.5,0.00010617,2]
[348315192,1736442658813,-500.0,0.00010617,2]
[348315193,1736442658823,-533.35,0.00010617,2]
[348315194,1736442658833,-500.0,0.00010617,2]
[348315195,1736442658842,-500.0,0.00010617,2]
[348315196,1736442658854,-500.0,0.00010617,2]
[348315197,1736442658865,-1142.8,0.00010617,2]
[348315198,1736442658875,-500.0,0.00010617,2]
[348315199,1736442658887,-500.0,0.00010617,2]